{"text_format":"3","workbook":"xlsx","n_sheets":2,"sheets":["Antrag","Hilfstabelle"],"not_rendered":{"defined_names":18},"read":"whole","date_system":"1900"}

{"sheet":"Antrag","index":0,"n_rows":127,"n_cols":19,"rows_kept":127,"merged":[[2,9,3,9],[3,2,3,6],[4,2,4,6],[5,8,7,9],[11,2,11,4],[11,6,11,7],[12,2,12,4],[12,6,12,7],[13,2,13,4],[13,6,13,7],[15,2,15,6],[16,2,16,6],[51,3,53,7],[87,4,91,7],[88,2,89,3],[94,2,94,9],[96,2,101,9],[110,2,110,4],[110,6,110,9]]}
["Antragsformular für den Vereinsbeitrag \"SPORT\"",{"$nulls":5},2024]
[]
[{"$nulls":9},"Beitrag 2024",{"$nulls":8},"ACHTUNG"]
["Verein",{"$nulls":17},"Mit dem Tabulator kann von einem ins nächste auszufüllende Feld "]
["Adresse",{"$nulls":8},{"$f":"ROUNDUP(SUM(SUM(J21:J60)+(J76+J77)+J71)*P83,0)","v":0},{"$nulls":8},"gesprungen werden."]
["Postfach",{"$nulls":7},{"$f":"IF($G$83=0,\"Eigenkapital ist im Antrag aufzuführen\",\"\")","v":"Eigenkapital ist im Antrag aufzuführen"}]
["PLZ / Ort"]
[]
[]
["Gründungsjahr"]
[]
["Präsident",{"$nulls":4},"E-Mail:",null,null,"T:"]
["Kassier",{"$nulls":4},"E-Mail:",null,null,"T:"]
["Aktuar",{"$nulls":4},"E-Mail:",null,null,"T:"]
[]
["Bank",{"$nulls":6},"QR-Einzahlungsschein ist"]
["IBAN-Nr.",{"$nulls":6},"beizulegen"]
[]
[]
["Grundbeitrag",{"$nulls":8},"Beitrag 2024"]
["Art. 4 II",null,"Vereinsklasse",{"$f":"IF(C10=\"\",0,(IF(G1-C10>=51,4,(IF(G1-C10>=26,3,IF(G1-C10>=11,2,IF(G1-C10>=3,1,0)))))))","v":0},{"$f":"IF(D21=0,\"Anspruch auf Vereinsbeitrag nicht gegeben.\",\"\")","v":"Anspruch auf Vereinsbeitrag nicht gegeben."},null,null,{"$f":"IF(D21=1,B_1,IF(D21=2,B_2,IF(D21=3,B_3,IF(D21=4,B_4,0))))","v":0},null,{"$f":"ROUNDUP(H21,0)","v":0}]
[]
["Art. 4 III",null,"Lizenzierte Aktivmitglieder (volljährig)",{"$nulls":4},{"$f":"G23*B_Erw","v":0},null,{"$f":"ROUNDUP(P23,0)","v":0},{"$nulls":5},{"$f":"IF($G$23*B_Erw<1501,$G$23*B_Erw,1500)","v":0}]
[null,null,{"$f":"IF($G$23>0,\"Mitgliederliste beilegen\",\"keine lizenzierten Aktivmitglieder im Verein\")","v":"keine lizenzierten Aktivmitglieder im Verein"},{"$nulls":4},{"$f":"IF(H23>1500,\"Der max. Beitrag ist begrenzt\",\"\")","v":""}]
[null,null,{"$f":"IF($G$23>0,\"(Name, Adresse, Jahrgang, Kategorie [aktiv / passiv], Lizenz [ja / nein])\",\"\")","v":""}]
[]
[]
["Jugendbeitrag"]
["Art. 5",null,"Jugendliche mit Jahrgang",null,{"$f":"G1-10","v":2014},"und jünger",null,{"$f":"G29*J_10","v":0}]
[null,null,"Jugendliche mit Jahrgang",null,{"$f":"G1-19","v":2005},"bis 2013",null,{"$f":"G30*J_19","v":0}]
[]
[null,null,"Gesamtbeitrag ",{"$nulls":4},{"$f":"H29+H30","v":0},null,{"$f":"IF(H32>10001,10000,H32)","v":0}]
[null,null,{"$f":"IF($J$32>0,\"Jugendmitgliederliste beilegen\",\"keine Jugendlichen im Verein\")","v":"keine Jugendlichen im Verein"},{"$nulls":4},{"$f":"IF(H32>10000,\"Der max. Beitrag ist begrenzt\",\"\")","v":""}]
[null,null,{"$f":"IF($J$32>0,\"(Name, Adresse, Jahrgang, Kategorie [aktiv / passiv])\",\"\")","v":""}]
[]
[null,null,{"$f":"IF(SUM(G23:G30)<10,\"Anspruch auf Vereinsbeitrag ist nicht gegeben, da weniger als 10 Mitglieder.\",\"\")","v":"Anspruch auf Vereinsbeitrag ist nicht gegeben, da weniger als 10 Mitglieder."}]
[]
["Leistungsbeitrag (zutreffende Felder mit einem \"x\" markieren)",{"$nulls":5},"Ja","Nein"]
["Art. 6","S1","Teilnahme an Verbands-Meisterschaften / Wettkämpfen",{"$nulls":5},{"$f":"IF(P39>1,\"FEHLER: nur ein Feld markieren\",\"\")","v":""},{"$f":"IF(G39=\"x\",S_1,IF(H39=\"x\",0,\"\"))","v":""},{"$nulls":5},{"$f":"COUNTIF(G39:H39,\"x\")","v":0}]
[null,"S2","Teilnahme an oberklassigen Meisterschaften ",{"$nulls":5},{"$f":"IF(P40>1,\"FEHLER: nur ein Feld markieren\",\"\")","v":""},{"$f":"IF(G40=\"x\",S_2,IF(H40=\"x\",0,\"\"))","v":""},{"$nulls":5},{"$f":"COUNTIF(G40:H40,\"x\")","v":0}]
[null,null,"(mindestens zweithöchste Leistungsklasse)"]
[null,"S3","Teilnahme an einem Gemeindeanlass 2023",{"$nulls":12},{"$f":"COUNTIF(G42:H42,\"x\")","v":0}]
[{"$nulls":5},"Anzahl",{"$f":"IF(H42=\"x\",0,COUNTIF(G45:G48,\"x\"))","v":0},null,null,{"$f":"IF(G42=\"x\",G43*S_3,\"\")","v":""}]
[]
[null,null,"Teilnahme an","slowUp 2023"]
[{"$nulls":3},"Umweltputzete 2023"]
[{"$nulls":3},"Spiel- und Sporttag 2023"]
[{"$nulls":3},"\"Kunscht met Vadoz\""]
[]
[null,"S4","Durchführung eines internationalen Anlasses",{"$nulls":5},{"$f":"IF(P50>1,\"FEHLER: nur ein Feld markieren\",\"\")","v":""},{"$f":"IF(P50=1,S_4,0)","v":0},{"$nulls":5},{"$f":"COUNTIF(G50:H50,\"x\")","v":0}]
[]
[null,null,{"$f":"IF(G50=\"x\",\"Bezeichnung\",\"\")","v":""}]
[]
[]
[]
[]
[]
["Beitrag für Trainer / Leiter"]
["Art. 7",null,"Anzahl angestellte Trainer / Leiter",{"$nulls":4},{"$f":"G59*T_1","v":0},null,{"$f":"IF(H59>10001,10000,H59)","v":0}]
[]
[null,null,{"$f":"IF(J59>0,\"Liste mit Namen der Trainer sowie Vertragskopien oder J+S-Bestätigungen beilegen\",\"keine Trainer / Leiter angestellt\")","v":"keine Trainer / Leiter angestellt"},{"$nulls":6},{"$f":"IF(H59>10000,\"Der max. Beitrag ist begrenzt\",\"\")","v":""}]
[]
[]
[]
["Sonderbeiträge"]
["Art. 8 II",null,"Beitrag für Jubiläum im Folgejahr"]
[null,null,{"$f":"IF(OR(P67=25,P67=50,P67=75,P67=100,P67=125,P67=150),\"Im kommenden Jahr feiern Sie ein Vereinsjubiläum.\",\"Kein beitragsberechtigtes Jubiläum.\")","v":"Kein beitragsberechtigtes Jubiläum."},{"$nulls":12},{"$f":"G1-C10+1","v":2025},"Im kommenden Jahr wird ihr Verein "]
[]
[null,null,{"$f":"IF(C67=\"Im kommenden Jahr feiern Sie ein Vereinsjubiläum.\",\"Antrag für Jubiläumsbeitrag (inkl. Konzept / Programm / Finanzplan) ist mit diesem Formular einzureichen.\",\"\")","v":""},{"$nulls":12},{"$f":"P67/25","v":81}," Jahre alt."]
[]
[null,null,"Jubiläumsbeitrag für laufendes Jahr (gestützt auf Antrag vom Vorjahr)"]
[{"$nulls":9},"(von der Verwaltung auszufüllen)"]
[]
[]
["Überkommunale Vereine"]
["Art. 9 IV",null,"Beiträge von anderer Gemeinde",{"$nulls":4},"CHF",null,{"$f":"P76*-1","v":0},{"$nulls":5},{"$f":"ROUNDDOWN(G76*0.5,0)","v":0}]
[null,null,"Beiträge vom Land (Verband)",{"$nulls":4},"CHF",null,{"$f":"P77*-1","v":0},{"$nulls":5},{"$f":"ROUNDDOWN(G77*0.5,0)","v":0}]
[]
["Allgemeine Angaben zu den Finanzen "]
["Art. 2 I",null,"Jahresaufwand (31.12.)",null,null,{"$f":"$G$1-1","v":2023},null,"CHF"]
[]
[null,null,"Eigenkapital des Vereins (31.12.)",null,null,{"$f":"$G$1-2","v":2022},null,"CHF"]
[null,null,"Eigenkapital des Vereins (31.12.)",null,null,{"$f":"$G$1-1","v":2023},null,"CHF",{"$nulls":7},{"$f":"IF($G$83=0,0,1)","v":0}]
[]
[null,null,"Rückstellungen für Anlässe / Anschaffungen (gesamt)",{"$nulls":4},"CHF",{"$nulls":7},{"$f":"IF($G$85=0,0,1)","v":0}]
[null,null,"Neu gebildete Rückstellungen im Jahr",null,null,{"$f":"$G$1-1","v":2023},null,"CHF",{"$nulls":7},{"$f":"IF($G$86=0,0,1)","v":0}]
[]
[null,null,{"$f":"IF(OR(P85=1,P86=1),\"Grund für Rückstellung(en)\",\"\")","v":""}]
[null,null,{"$f":"IF(C88=\"\",\"\",\"Bitte Grund für Rückstellung(en) aufführen\")","v":""}]
[]
[]
[]
[]
[]
[]
["Bemerkungen",null,"hier können Sie weitere Ergänzungen / Anregungen einbringen"]
{"$rows_empty":8}
[null,null,"Der Unterzeichnende bestätigt mit seiner Unterschrift die Korrektheit der gemachten Angaben."]
[]
[]
[{"$nulls":18},"ACHTUNG"]
[{"$nulls":18},"Nach Beendigung der Eingabe das Dokument speichern und gemeinsam"]
[{"$nulls":18},"mit einzureichenden Unterlagen zustellen an:"]
[{"$nulls":18},"Mail: roland.ospelt@vaduz.li"]
[null,null,"Ort und Datum",{"$nulls":3},"Unterschrift / Stempel ",{"$nulls":11},"Post: Gemeinde Vaduz, z. Hd. Roland Ospelt, Städtle 6, Vaduz"]
[]
[{"$nulls":18},"Mit der elektronischen Zustellung des Formulars an die Gemeinde"]
[{"$nulls":18},"Vaduz bestätigt der Sender die Richtigkeit der getätigten Angaben."]
[]
["Folgende Unterlagen sind gemeinsam mit diesem Formular einzureichen:"]
[]
["Beilagen:",null," GV-Protokoll / Jahresbericht",{"$nulls":15},"ACHTUNG"]
[null,null," Jahresrechnung (Bilanz / Erfolgsrechnung)",{"$nulls":15},"Bitte beachten Sie die einzureichenden Dokumente."]
[null,null," Revisionsbericht (unterzeichnet)"]
[null,null," QR-Einzahlungsschein / IBAN"]
[]
[null,null,{"$f":"IF(SUM(G23,G29,G30)>0,\" Liste der Vereinsmitglieder (Name, Adresse, Jahrgang, Kategorie [aktiv / passiv], Lizenz [ja / nein])\",\"\")","v":""}]
[null,null,{"$f":"IF($J$32>0,\" Liste der Jugendlichen (Name, Adresse, Jahrgang, Kategorie [aktiv / passiv])\",\"\")","v":""}]
[null,null,{"$f":"IF($J$59>0,\" Liste mit Namen der Trainer / Leiter sowie Vertragskopien oder J+S-Bestätigungen\",\"\")","v":""}]
[null,null,{"$f":"IF($C$69=\"\",\"\",\" Antrag für Beitrag an Jubiläumsanlass (Konzept / Programm, Finanzierungsplan)\")","v":""}]

{"sheet":"Hilfstabelle","index":1,"n_rows":24,"n_cols":7,"rows_kept":24}
[null,"Hilfstabelle"]
[]
[null,"Art. 4"]
[null,"Klasse ",0,1,2,3,4]
[null,"Beitrag ",{"v":0,"d":"0.00"},{"v":500,"d":"500.00"},{"v":1000,"d":"1000.00"},{"v":1500,"d":"1500.00"},{"v":2500,"d":"2500.00"}]
[null,"Beitrag E",{"$nulls":4},15]
[]
[]
[null,"Art. 5 ",null,null,"J_10","J_19"]
[null,"Jugendliche bis 10",null,null,20]
[null,"Jugendliche bis 19",{"$nulls":3},30]
[]
[]
[null,"Art. 6",null,"S_1","S_2","S_3","S_4"]
[null,"Sonderbeiträge",null,1000,1000,500,500]
[]
[]
[null,"Art. 7",null,null,"T_1","T_2"]
[null,"Trainer / Leiter",null,null,500,500]
[]
[]
[]
[null,"Art. 9",null,"J_1","J_2","J_3"]
[null,"Jubiläum",null,{"v":2500,"d":"2,500.00"},{"v":5000,"d":"5,000.00"},{"v":10000,"d":"10,000.00"}]